fUST/lending_fUST_20251012
["ID","MTS","AMOUNT","RATE_DAILY","PERIOD"]
[390951943,1760230260824,-151.0,0.000249,7]
[390951944,1760230260841,-1000.0,0.000249,2]
[390951945,1760230260852,-1000.0,0.000249,2]
[390951946,1760230260863,-202.0,0.000249,2]
[390951947,1760230260875,-300.800222,0.000249,7]
[390951948,1760230260885,-151.0,0.000249,7]
[390951949,1760230260896,-151.0,0.000249,7]
[390951950,1760230260907,-151.0,0.000249,7]
[390951951,1760230260918,-190.760591,0.000249,7]
[390951952,1760230260929,-222.016605,0.000249,7]
[390951953,1760230260940,-190.760591,0.000249,7]
[390951954,1760230260956,-190.760591,0.000249,7]
[390951955,1760230260967,-190.760591,0.000249,7]
[390951956,1760230260978,-186.648147,0.000249,7]
[390951957,1760230260988,-186.648147,0.000249,7]
[390951958,1760230261171,-186.648147,0.000249,7]
[390951959,1760230261190,-186.648147,0.000249,7]
[390951960,1760230261200,-151.0,0.000249,7]
[390951961,1760230261209,-151.0,0.000249,7]
[390951962,1760230261218,-410.651133,0.000249,7]
[390951963,1760230261227,-410.651133,0.000249,7]
[390951964,1760230261237,-410.651133,0.000249,7]
[390951965,1760230261246,-410.651133,0.000249,7]
[390951966,1760230261255,-151.0,0.000249,7]
[390951967,1760230261265,-151.0,0.000249,7]
[390951968,1760230261274,-151.0,0.000249,7]
[390951969,1760230261283,-151.0,0.000249,7]
[390951970,1760230261293,-1567.70890803,0.000249,7]
[390951971,1760230261302,-151.0,0.000249,7]
[390951972,1760230261312,-151.0,0.000249,7]
[390951973,1760230261321,-151.0,0.000249,7]
[390951974,1760230261330,-151.0,0.000249,7]
[390951975,1760230261339,-151.0,0.000249,7]
[390951976,1760230261347,-151.0,0.000249,7]
[390951977,1760230261356,-151.0,0.000249,7]
[390951978,1760230261365,-447.993979,0.000249,7]
[390951979,1760230261374,-447.993979,0.000249,7]
[390951980,1760230261384,-447.993979,0.000249,7]
[390951981,1760230261394,-447.993979,0.000249,7]
[390951982,1760230261403,-151.0,0.000249,7]
[390951983,1760230261415,-554.809293,0.000249,7]
[390951984,1760230261425,-151.0,0.000249,7]
[390951985,1760230261434,-554.809293,0.000249,7]
[390951986,1760230261443,-1000.0,0.00024906,2]
[390951987,1760230261453,-2144.78647553,0.00024912,2]
[390951988,1760230261462,-3000.0,0.00024912,2]
[390951989,1760230261471,-3000.0,0.00024912,2]
[390951990,1760230261481,-3000.0,0.00024912,2]
[390951991,1760230261491,-1000.0,0.00024912,2]
[390951992,1760230261501,-560.0,0.00024946,2]
[390951993,1760230261510,-572.53089612,0.00024954,2]
[390951994,1760230261520,-187.76775891,0.00024973,2]
[390951995,1760230261529,-4164.0965018,0.00024982,2]
[390951996,1760230261538,-45141.65685298,0.00025,2]
[390951997,1760230261548,-500.0,0.00025002,2]
[390951998,1760230261557,-226.70333089,0.00025066,4]
[390951999,1760230261567,-500.0,0.00025081,5]
[390952000,1760230261576,-1342.87767558,0.000251,2]
[390952001,1760230261586,-473.66867045,0.000251,2]
[390952002,1760230261595,-6158.9977008,0.000251,2]
[390952003,1760230261604,-963.18179789,0.000251,2]
[390952004,1760230261613,-177.59461824,0.000251,2]
[390952005,1760230261622,-1082.88519677,0.000251,2]
[390952006,1760230261633,-160.0,0.000251,2]
[390952007,1760230261642,-1542.08599307,0.000251,2]
[390952008,1760230261651,-666.66666667,0.00025108,8]
[390952009,1760230261660,-666.66666667,0.00025108,8]
[390952010,1760230261669,-312.16666667,0.00025147,2]
[390952011,1760230261679,-160.0,0.00025147,2]
[390952012,1760230261688,-160.0,0.00025147,2]
[390952013,1760230261697,-298.08050243,0.00025147,2]
[390952014,1760230261707,-505.0,0.00025149,2]
[390952015,1760230261716,-1567.70890803,0.00025155,2]
[390952016,1760230261726,-170.09694304,0.00025164,6]
[390952017,1760230261735,-170.09694304,0.00025164,6]
[390952018,1760230261745,-178.00183321,0.0002517,6]
[390952019,1760230261754,-178.00183321,0.0002517,6]
[390952020,1760230261763,-505.0,0.0002518,2]
[390952021,1760230261772,-179.58695001,0.00025181,2]
[390952022,1760230261781,-505.0,0.00025194,2]
[390952023,1760230261790,-250.0,0.00025205,2]
[390952024,1760230261799,-226.70333089,0.00025216,6]
[390952025,1760230261808,-226.70333089,0.00025216,6]
[390952026,1760230261818,-226.70333089,0.00025216,6]
[390952027,1760230261827,-5888.0,0.00025234,2]
[390952028,1760230261837,-666.66666667,0.00025256,10]
[390952029,1760230261845,-666.66666667,0.00025256,10]
[390952030,1760230261855,-666.66666667,0.00025256,10]
[390952031,1760230261864,-666.66666667,0.00025256,10]
[390952032,1760230261874,-150.0,0.00025269,7]
[390952033,1760230261883,-500.0,0.00025276,2]
[390952034,1760230261892,-505.0,0.00025285,2]
[390952035,1760230261902,-505.0,0.00025354,2]
[390952036,1760230261911,-500.0,0.00025355,5]
[390952037,1760230261921,-2500.0,0.00025364,2]
[390952038,1760230261931,-505.68056906,0.00025364,2]
[390952039,1760230261940,-226.70333089,0.00025366,8]
[390952040,1760230261950,-226.70333089,0.00025366,8]
[390952041,1760230261960,-226.70333089,0.00025366,8]
[390952042,1760230261970,-1342.87767558,0.000254,2]
[390952043,1760230261981,-473.66867045,0.000254,2]
[390952044,1760230261991,-6158.9977008,0.000254,2]
[390952045,1760230262000,-963.18179789,0.000254,2]
[390952046,1760230262011,-177.59461824,0.000254,2]
[390952047,1760230262020,-1082.88519677,0.000254,2]
[390952048,1760230262030,-160.0,0.000254,2]
[390952049,1760230262041,-1542.08599307,0.000254,2]
[390952050,1760230262060,-666.66666667,0.00025404,12]
[390952051,1760230262069,-505.0,0.0002542,2]
[390952052,1760230262078,-505.0,0.00025458,2]
[390952053,1760230262087,-505.0,0.00025458,2]
[390952054,1760230262096,-3170.04564756,0.0002546,2]
[390952055,1760230262105,-2500.0,0.0002546,2]
[390952056,1760230262114,-500.0,0.0002546,2]
[390952057,1760230262123,-178.00183321,0.00025469,10]
[390952058,1760230262132,-178.00183321,0.00025469,10]
[390952059,1760230262142,-178.00183321,0.00025469,10]
[390952060,1760230262151,-505.0,0.00025472,2]
[390952061,1760230262161,-660.0,0.00025494,2]
[390952062,1760230262171,-1217.94,0.00025507,2]
[390952063,1760230262180,-170.09694304,0.00025512,11]
[390952064,1760230262190,-226.70333089,0.00025516,10]
[390952065,1760230262199,-226.70333089,0.00025516,10]
[390952066,1760230262208,-226.70333089,0.00025516,10]
[390952067,1760230262217,-226.70333089,0.00025516,10]
[390952068,1760230262227,-500.0,0.0002555,2]
[390952069,1760230262236,-666.66666667,0.00025553,14]
[390952070,1760230262246,-621.60497293,0.00025554,2]
[390952071,1760230262255,-187.92878455,0.00025569,10]
[390952072,1760230262265,-505.0,0.00025579,2]
[390952073,1760230262274,-500.0,0.00025629,5]
[390952074,1760230262284,-505.0,0.00025653,2]
[390952075,1760230262294,-1342.87767558,0.000257,2]
[390952076,1760230262310,-473.66867045,0.000257,2]
[390952077,1760230262330,-6158.9977008,0.000257,2]
[390952078,1760230262351,-963.18179789,0.000257,2]
[390952079,1760230262366,-177.59461824,0.000257,2]
[390952080,1760230262377,-1082.88519677,0.000257,2]
[390952081,1760230262386,-1542.08599307,0.000257,2]
[390952082,1760230262396,-666.66666667,0.00025701,16]
[390952083,1760230262406,-505.0,0.00025725,2]
[390952084,1760230262415,-350.0,0.00025753,2]
[390952085,1760230262424,-178.00183321,0.00025769,14]
[390952086,1760230262433,-178.00183321,0.00025769,14]
[390952087,1760230262442,-178.00183321,0.00025769,14]
[390952088,1760230262451,-505.0,0.00025791,2]
[390952089,1760230262464,-500.0,0.00025824,2]
[390952090,1760230262473,-505.0,0.00025842,7]
[390952091,1760230262482,-505.0,0.00025849,2]
[390952092,1760230262492,-666.66666667,0.00025849,18]
[390952093,1760230262502,-505.0,0.00025851,2]
[390952094,1760230262512,-170.09694304,0.0002586,16]
[390952095,1760230262522,-187.92878455,0.00025869,14]
[390952096,1760230262533,-187.92878455,0.00025869,14]
[390952097,1760230262542,-1342.87767558,0.000259,2]
[390952098,1760230262551,-473.66867045,0.000259,2]
[390952099,1760230262562,-6158.9977008,0.000259,2]
[390952100,1760230262572,-963.18179789,0.000259,2]
[390952101,1760230262582,-177.59461824,0.000259,2]
[390952102,1760230262591,-1082.88519677,0.000259,2]
[390952103,1760230262601,-1542.08599307,0.000259,2]
[390952104,1760230262610,-505.0,0.00025902,2]
[390952105,1760230262620,-500.0,0.00025903,5]
[390952106,1760230262632,-226.19615026,0.00025907,16]
[390952107,1760230262641,-3000.0,0.00025912,2]
[390952108,1760230262651,-272.04399707,0.00025918,16]
[390952109,1760230262661,-407.0,0.00025926,2]
[390952110,1760230262671,-420.0,0.00025926,2]
[390952111,1760230262681,-587.0,0.00025926,2]
[390952112,1760230262690,-587.0,0.00025926,2]
[390952113,1760230262700,-2351.0,0.00025927,2]
[390952114,1760230262709,-3257.0,0.00025944,2]
[390952115,1760230262719,-666.66666667,0.00025998,20]
[390952116,1760230262728,-410.51979657,0.00026,60]
[390952117,1760230262738,-250.0,0.00026,7]
[390952118,1760230262747,-250.0,0.00026,7]
[390952119,1760230262757,-250.0,0.00026,7]
[390952120,1760230262768,-163.5,0.00026,7]
[390952121,1760230262777,-13497.13,0.00026027,2]
[390952122,1760230262787,-202.63705719,0.00026042,2]
[390952123,1760230262797,-178.00183321,0.00026068,18]
[390952124,1760230262806,-178.00183321,0.00026068,18]
[390952125,1760230262816,-178.00183321,0.00026068,18]
[390952126,1760230262825,-178.00183321,0.00026068,18]
[390952127,1760230262835,-505.0,0.0002607,2]
[390952128,1760230262845,-505.0,0.00026071,2]
[390952129,1760230262855,-3257.0,0.00026092,2]
[390952130,1760230262865,-670.67904974,0.00026154,2]
[390952131,1760230262875,-505.0,0.00026156,2]
[390952132,1760230262885,-500.0,0.00026161,7]
[390952133,1760230262895,-3257.0,0.00026161,7]
[390952134,1760230262904,-2351.0,0.00026166,2]
[390952135,1760230262914,-187.92878455,0.0002617,18]
[390952136,1760230262924,-187.92878455,0.0002617,18]
[390952137,1760230262933,-505.0,0.00026172,2]
[390952138,1760230262943,-500.0,0.00026177,5]
[390952139,1760230262952,-1342.87767558,0.000262,2]
[390952140,1760230262963,-473.66867045,0.000262,2]
[390952141,1760230262973,-6158.9977008,0.000262,2]
[390952142,1760230262982,-963.18179789,0.000262,2]
[390952143,1760230262992,-177.59461824,0.000262,2]
[390952144,1760230263001,-1082.88519677,0.000262,2]
[390952145,1760230263010,-1542.08599307,0.000262,2]
[390952146,1760230263020,-170.09694304,0.00026209,20]
[390952147,1760230263030,-929.1355193,0.00026261,2]
[390952148,1760230263045,-450.0,0.00026301,2]
[390952149,1760230263060,-501.57050015,0.0002631,7]
[390952150,1760230263070,-178.00183321,0.00026367,22]
[390952151,1760230263079,-6158.9977008,0.000264,2]
[390952152,1760230263092,-1082.88519677,0.000264,2]
[390952153,1760230263102,-3500.0,0.0002646,2]
[390952154,1760230263112,-250.0,0.000265,7]
[390952155,1760230263127,-207.3181572,0.00026547,2]
[390952156,1760230263136,-205.43043741,0.0002655,3]
[390952157,1760230263146,-162.0,0.0002655,3]
[390952158,1760230263155,-162.0,0.0002655,3]
[390952159,1760230263165,-151.63772695,0.0002655,3]
[390952160,1760230263175,-165.0,0.0002655,3]
[390952161,1760230263185,-166.0,0.0002655,3]
[390952162,1760230263196,-166.0,0.0002655,3]
[390952163,1760230263205,-166.0,0.0002655,3]
[390952164,1760230263215,-166.0,0.0002655,3]
[390952165,1760230263225,-157.0,0.0002655,3]
[390952166,1760230263235,-155.0,0.0002655,3]
[390952167,1760230263245,-329.0,0.0002655,3]
[390952168,1760230263255,-329.0,0.0002655,3]
[390952169,1760230263264,-329.0,0.0002655,3]
[390952170,1760230263273,-162.0,0.0002655,3]
[390952171,1760230263282,-666.66666667,0.00026636,22]
[390952172,1760230263291,-991.508496,0.00026676,2]
[390952173,1760230263300,-6158.9977008,0.000267,2]
[390952174,1760230263309,-1082.88519677,0.000267,2]
[390952175,1760230263318,-719.75312655,0.00026754,2]
[390952176,1760230263326,-197.0,0.000268,16]
[390952177,1760230263335,-550.0,0.00026849,2]
[390952178,1760230263344,-165.0,0.00026859,3]
[390952179,1760230263353,-165.0,0.00026859,3]
[390952180,1760230263362,-166.0,0.00026859,3]
[390952181,1760230263371,-165.0,0.00026859,3]
[390952182,1760230263383,-166.0,0.00026859,3]
[390952183,1760230263392,-165.0,0.00026859,3]
[390952184,1760230263402,-165.74684479,0.00026859,3]
[390952185,1760230263411,-169.74464474,0.00026859,3]
[390952186,1760230263420,-166.0,0.00026859,3]
[390952187,1760230263430,-329.0,0.00026859,3]
[390952188,1760230263440,-176.51579718,0.00026859,3]
[390952189,1760230263449,-226.19615026,0.00026954,30]
[390952190,1760230263458,-272.04399707,0.00026965,30]
[390952191,1760230263467,-200.0,0.00027,120]
[390952192,1760230263477,-150.5,0.00027,2]
[390952193,1760230263486,-6158.9977008,0.00027,2]
[390952194,1760230263495,-1082.88519677,0.00027,2]
[390952195,1760230263504,-4000.0,0.00027008,2]
[390952196,1760230263513,-190.8476436,0.00027068,2]
[390952197,1760230263522,-1102.75,0.00027123,10]
[390952198,1760230263531,-1102.75,0.00027123,10]
[390952199,1760230263541,-1102.75,0.00027123,10]
[390952200,1760230263550,-1102.75,0.00027123,10]
[390952201,1760230263559,-1102.75,0.00027123,10]
[390952202,1760230263568,-1102.75,0.00027123,10]
[390952203,1760230263578,-1102.75,0.00027123,10]
[390952204,1760230263587,-1102.75,0.00027123,10]
[390952205,1760230263597,-1102.75,0.00027123,10]
[390952206,1760230263606,-1102.75,0.00027123,10]
[390952207,1760230263614,-1102.75,0.00027123,10]
[390952208,1760230263625,-1102.75,0.00027123,10]
[390952209,1760230263636,-1102.75,0.00027123,10]
[390952210,1760230263647,-1102.75,0.00027123,10]
[390952211,1760230263656,-1102.75,0.00027123,10]
[390952212,1760230263666,-1102.75,0.00027123,10]
[390952213,1760230263675,-1102.75,0.00027123,10]
[390952214,1760230263684,-1102.75,0.00027123,10]
[390952215,1760230263694,-1102.75,0.00027123,10]
[390952216,1760230263703,-1102.75,0.00027123,10]
[390952217,1760230263712,-1102.75,0.00027123,10]
[390952218,1760230263721,-1102.75,0.00027123,10]
[390952219,1760230263730,-1102.75,0.00027123,10]
[390952220,1760230263739,-1102.91538687,0.00027123,10]
[390952221,1760230263749,-298.08050243,0.000272,10]
[390952222,1760230263758,-6158.9977008,0.000272,2]
[390952223,1760230263768,-1082.88519677,0.000272,2]
[390952224,1760230263777,-666.66666667,0.00027241,30]
[390952225,1760230263786,-3000.0,0.000273,2]
[390952226,1760230263796,-3000.0,0.0002731,2]
[390952227,1760230263805,-3000.0,0.0002732,2]
[390952228,1760230263814,-1522.43,0.00027329,2]
[390952229,1760230263823,-3000.0,0.0002733,2]
[390952230,1760230263832,-3000.0,0.0002734,2]
[390952231,1760230263841,-3000.0,0.0002735,2]
[390952232,1760230263850,-768.82720336,0.00027354,2]
[390952233,1760230263860,-864.0,0.00027356,30]
[390952234,1760230263869,-3000.0,0.0002736,2]
[390952235,1760230263881,-3000.0,0.0002737,2]
[390952236,1760230263891,-3000.0,0.0002738,2]
[390952237,1760230263900,-3000.0,0.0002739,2]
[390952238,1760230263909,-1000.0,0.00027397,30]
[390952239,1760230263919,-1000.0,0.00027397,30]
[390952240,1760230263928,-1000.0,0.00027397,30]
[390952241,1760230263937,-1000.0,0.00027397,30]
[390952242,1760230263946,-1000.0,0.00027397,30]
[390952243,1760230263955,-1135.99673508,0.00027397,30]
[390952244,1760230263964,-13497.13,0.00027397,4]
[390952245,1760230263974,-650.0,0.00027397,5]
[390952246,1760230263983,-500.0,0.00027397,5]
[390952247,1760230263992,-150.0,0.00027397,5]
[390952248,1760230264002,-3030.36,0.000274,2]
[390952249,1760230264011,-6952.48,0.000274,2]
[390952250,1760230264020,-250.0,0.000274,7]
[390952251,1760230264030,-250.0,0.000274,7]
[390952252,1760230264040,-3000.0,0.000274,2]
[390952253,1760230264053,-417.15472785,0.000274,30]
[390952254,1760230264063,-298.08050243,0.000274,30]
[390952255,1760230264072,-3000.0,0.0002741,2]
[390952256,1760230264082,-3000.0,0.0002742,2]
[390952257,1760230264092,-3000.0,0.0002743,2]
[390952258,1760230264101,-3000.0,0.0002744,2]
[390952259,1760230264111,-3000.0,0.0002745,2]
[390952260,1760230264122,-3000.0,0.0002746,2]
[390952261,1760230264135,-3000.0,0.0002747,2]
[390952262,1760230264144,-297.8851395,0.00027479,30]
[390952263,1760230264154,-306.0,0.00027479,30]
[390952264,1760230264164,-3000.0,0.0002748,2]
[390952265,1760230264173,-3000.0,0.0002749,2]
[390952266,1760230264183,-3000.0,0.000275,2]
[390952267,1760230264193,-6158.9977008,0.000275,2]
[390952268,1760230264202,-1082.88519677,0.000275,2]
[390952269,1760230264212,-500.0,0.000275,10]
[390952270,1760230264222,-3000.0,0.0002751,2]
[390952271,1760230264231,-3000.0,0.0002752,2]
[390952272,1760230264241,-151.87,0.00027526,15]
[390952273,1760230264250,-3000.0,0.0002753,2]
[390952274,1760230264259,-3000.0,0.0002754,2]
[390952275,1760230264269,-3000.0,0.0002755,2]
[390952276,1760230264278,-2513.85770469,0.00027556,5]
[390952277,1760230264288,-3000.0,0.0002756,2]
[390952278,1760230264297,-3000.0,0.0002757,2]
[390952279,1760230264306,-3000.0,0.0002758,2]
[390952280,1760230264316,-3000.0,0.0002759,2]
[390952281,1760230264325,-151.0,0.0002759,30]
[390952282,1760230264334,-151.0,0.0002759,30]
[390952283,1760230264344,-151.0,0.0002759,30]
[390952284,1760230264353,-151.0,0.0002759,2]
[390952285,1760230264362,-151.0,0.0002759,30]
[390952286,1760230264505,-151.0,0.0002759,30]
[390952287,1760230264516,-151.0,0.0002759,30]
[390952288,1760230264525,-151.0,0.0002759,30]
[390952289,1760230264534,-151.0,0.0002759,30]
[390952290,1760230264544,-151.0,0.0002759,30]
[390952291,1760230264553,-151.0,0.0002759,30]
[390952292,1760230264563,-151.0,0.0002759,30]
[390952293,1760230264571,-5292.911547,0.000276,2]
[390952294,1760230264580,-151.0,0.000276,30]
[390952295,1760230264590,-372.045092,0.000276,30]
[390952296,1760230264599,-372.045092,0.000276,30]
[390952297,1760230264608,-151.0,0.000276,30]
[390952298,1760230264617,-372.045092,0.000276,30]
[390952299,1760230264626,-372.045092,0.000276,30]
[390952300,1760230264636,-177.625162,0.000276,30]
[390952301,1760230264646,-183.044696,0.000276,30]
[390952302,1760230264655,-183.044696,0.000276,30]
[390952303,1760230264665,-183.044696,0.000276,30]
[390952304,1760230264674,-183.044696,0.000276,30]
[390952305,1760230264683,-151.0,0.000276,30]
[390952306,1760230264692,-151.0,0.000276,30]
[390952307,1760230264702,-151.87,0.00027626,15]
[390952308,1760230264711,-151.87,0.00027726,15]
[390952309,1760230264720,-439.098643,0.00027808,30]
[390952310,1760230264730,-439.098643,0.00027808,30]
[390952311,1760230264740,-151.0,0.00027808,30]
[390952312,1760230264749,-439.098643,0.00027808,30]
[390952313,1760230264758,-151.0,0.00027808,30]
[390952314,1760230264767,-439.098643,0.00027808,30]
[390952315,1760230264776,-151.0,0.00027808,30]
[390952316,1760230264785,-151.0,0.00027808,30]
[390952317,1760230264795,-151.0,0.00027808,30]
[390952318,1760230264804,-547.335366,0.00027808,30]
[390952319,1760230264813,-547.335366,0.00027808,30]
[390952320,1760230264823,-547.335366,0.00027808,30]
[390952321,1760230264832,-547.335366,0.00027808,30]
[390952322,1760230264841,-151.0,0.00027808,30]
[390952323,1760230264850,-151.0,0.00027808,30]
[390952324,1760230264859,-151.0,0.00027808,30]
[390952325,1760230264868,-151.0,0.00027808,30]
[390952326,1760230264878,-229.02777,0.00027808,30]
[390952327,1760230264888,-229.02777,0.00027808,30]
[390952328,1760230264897,-229.02777,0.00027808,30]
[390952329,1760230264906,-229.02777,0.00027808,30]
[390952330,1760230264915,-151.0,0.00027808,30]
[390952331,1760230264925,-151.0,0.00027808,30]
[390952332,1760230264934,-151.0,0.00027808,30]
[390952333,1760230264944,-186.313944,0.00027808,30]
[390952334,1760230264953,-151.0,0.00027808,30]
[390952335,1760230264962,-151.0,0.00027808,30]
[390952336,1760230264972,-246.75131,0.00027808,30]
[390952337,1760230264981,-723.727711,0.00027808,30]
[390952338,1760230264990,-723.727711,0.00027808,30]
[390952339,1760230264999,-723.727711,0.00027808,30]
[390952340,1760230265009,-723.727711,0.00027808,30]
[390952341,1760230265018,-151.0,0.00027808,30]
[390952342,1760230265027,-151.0,0.00027808,30]
[390952343,1760230265036,-151.0,0.00027808,30]
[390952344,1760230265050,-256.893011,0.00027808,30]
[390952345,1760230265059,-256.893011,0.00027808,30]
[390952346,1760230265068,-256.893011,0.00027808,30]
[390952347,1760230265078,-256.893011,0.00027808,30]
[390952348,1760230265087,-210.786716,0.00027808,15]
[390952349,1760230265097,-210.786716,0.00027808,15]
[390952350,1760230265106,-210.786716,0.00027808,15]
[390952351,1760230265115,-210.786716,0.00027808,15]
[390952352,1760230265125,-151.0,0.00027808,30]
[390952353,1760230265135,-151.0,0.00027808,30]
[390952354,1760230265145,-151.0,0.00027808,30]
[390952355,1760230265154,-249.699503,0.00027808,30]
[390952356,1760230265164,-249.699503,0.00027808,30]
[390952357,1760230265173,-249.699503,0.00027808,30]
[390952358,1760230265182,-249.699503,0.00027808,30]
[390952359,1760230265191,-151.0,0.00027808,30]
[390952360,1760230265201,-192.099203,0.00027808,30]
[390952361,1760230265210,-192.099203,0.00027808,30]
[390952362,1760230265219,-192.099203,0.00027808,30]
[390952363,1760230265229,-192.099203,0.00027808,30]
[390952364,1760230265238,-151.0,0.00027808,30]
[390952365,1760230265248,-554.809293,0.00027808,30]
[390952366,1760230265257,-151.0,0.00027808,30]
[390952367,1760230265267,-554.809293,0.00027808,30]
[390952368,1760230265276,-151.87,0.00027826,15]
[390952369,1760230265286,-151.87,0.00027926,15]
[390952370,1760230265295,-750.0,0.00027945,5]
[390952371,1760230265305,-250.0,0.00027945,5]
[390952372,1760230265315,-817.90128017,0.00027954,2]
[390952373,1760230265326,-10320.1734082,0.00028,5]
[390952374,1760230265335,-293382.1289677,0.00028,7]
[390952375,1760230265451,-956617.8710323,0.00028,7]
[390952376,1760230265460,-1567.70890803,0.00028,30]
[390952377,1760230265470,-251.757214,0.00028,30]
[390952378,1760230265479,-151.0,0.00028,30]
[390952379,1760230265489,-210.776219,0.00028,30]
[390952380,1760230265498,-274.599595,0.00028,30]
[390952381,1760230265507,-202.6244,0.00028,30]
[390952382,1760230265516,-202.6244,0.00028,30]
[390952383,1760230265525,-202.6244,0.00028,30]
[390952384,1760230265535,-202.6244,0.00028,30]
[390952385,1760230265544,-154.332877,0.00028,30]
[390952386,1760230265553,-151.0,0.00028,30]
[390952387,1760230265563,-151.0,0.00028,30]
[390952388,1760230265572,-151.0,0.00028,30]
[390952389,1760230265581,-151.0,0.00028,30]
[390952390,1760230265590,-151.0,0.00028,30]
[390952391,1760230265599,-151.0,0.00028,30]
[390952392,1760230265609,-179.678964,0.00028,30]
[390952393,1760230265618,-447.993979,0.00028,30]
[390952394,1760230265628,-1567.70890803,0.00028,10]
[390952395,1760230265637,-447.993979,0.00028,30]
[390952396,1760230265646,-447.993979,0.00028,30]
[390952397,1760230265656,-447.993979,0.00028,30]
[390952398,1760230265665,-290.336802,0.0002802,60]
[390952399,1760230265674,-151.87,0.00028026,15]
[390952400,1760230265683,-1176.821363,0.0002811,30]
[390952401,1760230265693,-151.87,0.00028126,15]
[390952402,1760230265703,-823.0,0.00028174,2]
[390952403,1760230265712,-823.0,0.00028174,2]
[390952404,1760230265722,-3292.0,0.00028175,2]
[390952405,1760230265731,-151.0,0.00028175,30]
[390952406,1760230265740,-151.0,0.00028175,30]
[390952407,1760230265749,-151.0,0.00028175,30]
[390952408,1760230265758,-151.0,0.00028175,30]
[390952409,1760230265767,-151.0,0.00028175,30]
[390952410,1760230265776,-190.760591,0.00028175,30]
[390952411,1760230265785,-190.760591,0.00028175,30]
[390952412,1760230265794,-190.760591,0.00028175,30]
[390952413,1760230265803,-190.760591,0.00028175,30]
[390952414,1760230265811,-186.648147,0.00028175,30]
[390952415,1760230265820,-186.648147,0.00028175,30]
[390952416,1760230265829,-186.648147,0.00028175,30]
[390952417,1760230265839,-186.648147,0.00028175,30]
[390952418,1760230265848,-151.0,0.00028175,30]
[390952419,1760230265858,-151.0,0.00028175,30]
[390952420,1760230265867,-410.651133,0.00028175,30]
[390952421,1760230265876,-410.651133,0.00028175,30]
[390952422,1760230265885,-410.651133,0.00028175,30]
[390952423,1760230265894,-410.651133,0.00028175,30]
[390952424,1760230265903,-151.0,0.00028175,30]
[390952425,1760230265912,-151.0,0.00028175,30]
[390952426,1760230265921,-151.0,0.00028175,30]
[390952427,1760230265930,-242.66491503,0.00028209,2]
[390952428,1760230265939,-151.87,0.00028226,15]
[390952429,1760230265949,-297.8851395,0.00028301,30]
[390952430,1760230265958,-588.4106815,0.00028301,30]
[390952431,1760230265967,-297.8851395,0.00028301,30]
[390952432,1760230265976,-297.8851395,0.00028301,30]
[390952433,1760230265985,-588.4106815,0.00028301,30]
[390952434,1760230265995,-151.0,0.00028308,30]
[390952435,1760230266004,-151.0,0.00028308,30]
[390952436,1760230266014,-201.0,0.00028308,30]
[390952437,1760230266023,-151.87,0.00028326,15]
[390952438,1760230266033,-151.87,0.00028426,15]
[390952439,1760230266045,-1000.0,0.00028473,5]
[390952440,1760230266057,-151.0,0.0002849,30]
[390952441,1760230266066,-154.507525,0.0002849,30]
[390952442,1760230266075,-850.0,0.00028493,5]